[Event "21st Maccabiah GM 2022"]
[Site "?"]
[Date "2022.07.13"]
[Round "1.1"]
[White "Ginsburg, Gennadi"]
[Black "Dvoirys, Semen I."]
[Result "1/2-1/2"]
[ECO "D70"]
[WhiteElo "2400"]
[BlackElo "2439"]
[Annotator "ChessBase"]
[PlyCount "58"]
[EventDate "2022.07.13"]
[EventType "tourn"]
[EventCountry "ISR"]
[SourceTitle "playchess.com"]
[Source "ChessBase"]
[SourceQuality "1"]
[TimeControl "40/5400+30:1800+30"]

1. d4 {[%emt 0:00:40]} Nf6 {[%emt 0:00:00]} 2. Nf3 {[%emt 0:00:25]} g6 {[%emt 0:00:00]} 3. c4 {[%emt 0:00:56]} Bg7 {[%emt 0:00:00]} 4. e3 {[%emt 0:00:47]} d5 {[%emt 0:01:36]} 5. cxd5 {[%emt 0:01:24]} Nxd5 {[%emt 0:00:11]} 6. Be2 {[%emt 0:00:54]} O-O {[%emt 0:02:32]} 7. O-O {[%emt 0:01:01]} Nb6 {[%emt 0:02:26]} 8. e4 {[%emt 0:04:09]} Bg4 {[%emt 0:08:07]} 9. Nbd2 {[%emt 0:07:14]} e6 {[%emt 0:08:09]} 10. h3 {[%emt 0:05:17]} Bxf3 11. Nxf3 {[%emt 0:00:09]} c5 {[%emt 0:08:08]} 12. Bg5 {[%emt 0:06:55]} Qd7 {[%emt 0:00:10]} 13. dxc5 {[%emt 0:07:31]} Na4 {[%emt 0:00:06]} 14. Qc2 {[%emt 0:04:16]} Rc8 {[%emt 0:03:38]} 15. Rad1 {[%emt 0:06:21]} Qe8 {[%emt 0:00:41]} 16. b4 {[%emt 0:03:11]} a5 {[%emt 0:01:53]} 17. a3 {[%emt 0:11:05]} axb4 {[%emt 0:01:20]} 18. axb4 {[%emt 0:00:11]} Nc3 {[%emt 0:02:18]} 19. Rd2 {[%emt 0:01:05]} Ra2 {[%emt 0:09:56]} 20. Qd3 {[%emt 0:02:01]} Na6 {[%emt 0:15:23]} 21. e5 {[%emt 0:09:40]} Ra3 {[%emt 0:00:45]} 22. Rb2 {[%emt 0:01:56]} Qa4 {[%emt 0:01:47]} 23. Bd1 {[%emt 0:07:44]} Nxd1 {[%emt 0:05:23]} 24. Qxd1 {[%emt 0:00:10]} Nxb4 {[%emt 0:00:14]} 25. Qxa4 {[%emt 0:06:55]} Rxa4 {[%emt 0:00:05]} 26. Rfb1 {[%emt 0:01:49]} Nd3 {[%emt 0:00:58]} 27. Rxb7 {[%emt 0:01:02]} Nxc5 {[%emt 0:00:53]} 28. Rb8 {[%emt 0:04:53]} Ra8 {[%emt 0:00:07]} 29. Rxc8+ {[%emt 0:00:34]} Rxc8 {[%emt 0:00:04]} 1/2-1/2

[Event "21st Maccabiah GM 2022"]
[Site "?"]
[Date "2022.07.13"]
[Round "1.2"]
[White "Yarmonov, Igor"]
[Black "Postny, Evgeny"]
[Result "0-1"]
[ECO "E32"]
[WhiteElo "2372"]
[BlackElo "2564"]
[Annotator "ChessBase"]
[PlyCount "115"]
[EventDate "2022.07.13"]
[EventType "tourn"]
[EventCountry "ISR"]
[SourceTitle "playchess.com"]
[Source "ChessBase"]
[SourceQuality "1"]
[TimeControl "40/5400+30:1800+30"]

1. d4 {[%emt 0:00:02]} Nf6 {[%emt 0:00:06]} 2. c4 {[%emt 0:00:20]} e6 {[%emt 0:00:06]} 3. Nc3 {[%emt 0:00:28]} Bb4 {[%emt 0:00:07]} 4. Qc2 {[%emt 0:00:20]} O-O {[%emt 0:00:11]} 5. a3 {[%emt 0:00:09]} Bxc3+ {[%emt 0:00:08]} 6. Qxc3 {[%emt 0:00:25]} b6 {[%emt 0:00:16]} 7. Nf3 {[%emt 0:02:29]} Bb7 {[%emt 0:00:18]} 8. e3 {[%emt 0:01:21]} d6 {[%emt 0:00:54]} 9. Be2 {[%emt 0:00:19]} Nbd7 {[%emt 0:00:22]} 10. O-O {[%emt 0:00:31]} Ne4 {[%emt 0:00:31]} 11. Qc2 {[%emt 0:00:40]} f5 {[%emt 0:00:08]} 12. Ne1 {[%emt 0:00:24]} Qe7 {[%emt 0:09:42]} 13. f3 {[%emt 0:00:12]} Nef6 {[%emt 0:00:06]} 14. Nd3 {[%emt 0:04:45]} e5 {[%emt 0:04:31]} 15. Nf2 {[%emt 0:19:52]} f4 {[%emt 0:13:08]} 16. dxe5 {[%emt 0:26:03]} fxe3 {[%emt 0:01:47]} 17. exf6 {[%emt 0:00:26]} exf2+ {[%emt 0:00:05]} 18. Rxf2 {[%emt 0:00:27]} Qxf6 {[%emt 0:01:13]} 19. Bd3 {[%emt 0:02:40]} Qh4 {[%emt 0:07:33]} 20. Bd2 {[%emt 0:06:57]} Ne5 {[%emt 0:02:43]} 21. Raf1 {[%emt 0:09:32]} Rae8 {[%emt 0:02:45]} 22. b3 {[%emt 0:00:10]} Re6 {[%emt 0:04:48]} 23. Bc3 {[%emt 0:09:58]} Qh5 {[%emt 0:22:06]} 24. Bxe5 {[%emt 0:05:15]} Rxe5 {[%emt 0:00:57]} 25. f4 {[%emt 0:00:20]} Re7 {[%emt 0:07:05]} 26. b4 {[%emt 0:00:17]} c5 {[%emt 0:03:33]} 27. Re2 {[%emt 0:01:29]} Rfe8 {[%emt 0:05:48]} 28. Rfe1 {[%emt 0:00:38]} Rxe2 {[%emt 0:00:12]} 29. Rxe2 {[%emt 0:00:18]} Rxe2 {[%emt 0:00:06]} 30. Bxe2 {[%emt 0:00:32]} Qe8 {[%emt 0:01:59]} 31. Kf2 {[%emt 0:01:16]} Qe7 {[%emt 0:02:07]} 32. bxc5 {[%emt 0:01:23]} Qh4+ {[%emt 0:01:00]} 33. Ke3 {[%emt 0:00:40]} dxc5 {[%emt 0:02:27]} 34. Qf5 {[%emt 0:01:44]} Bxg2 {[%emt 0:01:25]} 35. Qd7 {[%emt 0:02:36]} Qh3+ {[%emt 0:02:33]} 36. Qxh3 {[%emt 0:00:03]} Bxh3 {[%emt 0:00:03]} 37. Ke4 {[%emt 0:00:28]} Kf7 {[%emt 0:03:28]} 38. Kd5 {[%emt 0:00:03]} Bg2+ {[%emt 0:00:21]} 39. Kd6 {[%emt 0:00:18]} Kf6 {[%emt 0:01:28]} 40. Kc7 {[%emt 0:00:04]} Kf5 {[%emt 0:01:24]} 41. Kb8 {[%emt 0:33:47]} a5 {[%emt 0:05:42]} 42. Ka7 {[%emt 0:00:00]} Kxf4 {[%emt 0:00:20]} 43. Kxb6 {[%emt 0:00:00]} Ke3 {[%emt 0:00:04]} 44. Bd1 {[%emt 0:00:00]} Kd4 {[%emt 0:00:08]} 45. Kxa5 {[%emt 0:00:00]} Kxc4 {[%emt 0:00:20]} 46. Kb6 {[%emt 0:00:00]} Kd4 {[%emt 0:01:04]} 47. a4 {[%emt 0:00:00]} c4 {[%emt 0:00:31]} 48. a5 {[%emt 0:00:00]} Kd3 {[%emt 0:05:15]} 49. Kc5 {[%emt 0:00:00]} c3 {[%emt 0:00:49]} 50. a6 {[%emt 0:00:00]} c2 {[%emt 0:00:21]} 51. Bxc2+ Kxc2 {[%emt 0:00:04]} 52. Kd6 {[%emt 0:00:00]} g6 {[%emt 0:00:26]} 53. Ke5 {[%emt 0:00:00]} h5 {[%emt 0:00:12]} 54. Kf6 {[%emt 0:06:18]} Be4 {[%emt 0:00:05]} 55. Ke5 {[%emt 0:00:54]} Kd3 {[%emt 0:00:04]} 56. Kf4 {[%emt 0:00:07]} Kd4 {[%emt 0:00:04]} 57. a7 {[%emt 0:00:34]} Kd3 {[%emt 0:00:04]} 58. Kg5 {[%emt 0:00:57]} 0-1

[Event "21st Maccabiah GM 2022"]
[Site "?"]
[Date "2022.07.13"]
[Round "1.3"]
[White "Parkhov, Yair"]
[Black "Gruenfeld, Yehuda"]
[Result "1-0"]
[ECO "E32"]
[WhiteElo "2468"]
[BlackElo "2426"]
[Annotator "ChessBase"]
[PlyCount "97"]
[EventDate "2022.07.13"]
[EventType "tourn"]
[EventCountry "ISR"]
[SourceTitle "playchess.com"]
[Source "ChessBase"]
[SourceQuality "1"]
[TimeControl "40/5400+30:1800+30"]

1. d4 {[%emt 0:00:15]} Nf6 {[%emt 0:00:05]} 2. c4 {[%emt 0:00:45]} e6 {[%emt 0:00:06]} 3. Nc3 Bb4 {[%emt 0:00:08]} 4. Qc2 {[%emt 0:02:54]} O-O {[%emt 0:00:30]} 5. e4 {[%emt 0:00:30]} d6 {[%emt 0:00:30]} 6. e5 {[%emt 0:00:30]} dxe5 {[%emt 0:00:30]} 7. dxe5 {[%emt 0:00:30]} Ng4 {[%emt 0:00:30]} 8. Nf3 {[%emt 0:00:30]} Nc6 {[%emt 0:00:30]} 9. Bf4 {[%emt 0:00:30]} f6 {[%emt 0:00:30]} 10. Bd3 {[%emt 0:00:30]} Ngxe5 {[%emt 0:00:30]} 11. Nxe5 {[%emt 0:00:30]} Nxe5 {[%emt 0:00:30]} 12. Bxe5 {[%emt 0:00:30]} fxe5 {[%emt 0:00:30]} 13. Bxh7+ {[%emt 0:00:30]} Kh8 {[%emt 0:00:30]} 14. O-O {[%emt 0:00:30]} Bd7 {[%emt 0:00:30]} 15. Rad1 {[%emt 0:00:30]} Rf4 {[%emt 0:00:30]} 16. Ne2 {[%emt 0:00:30]} Rh4 {[%emt 0:00:30]} 17. Be4 {[%emt 0:00:30]} Qe8 {[%emt 0:00:30]} 18. Bxb7 {[%emt 0:00:30]} Rb8 {[%emt 0:00:30]} 19. Be4 {[%emt 0:00:30]} Bc6 {[%emt 0:00:30]} 20. Bxc6 {[%emt 0:00:30]} Qxc6 {[%emt 0:00:30]} 21. b3 {[%emt 0:00:30]} Rf8 {[%emt 0:00:30]} 22. Qg6 {[%emt 0:00:30]} Bc5 {[%emt 0:00:30]} 23. Qg5 {[%emt 0:00:30]} Qe4 {[%emt 0:00:30]} 24. Rd8 {[%emt 0:00:30]} Rg4 {[%emt 0:00:30]} 25. Rxf8+ {[%emt 0:00:30]} Bxf8 {[%emt 0:00:30]} 26. Ng3 {[%emt 0:00:30]} Qd4 {[%emt 0:00:30]} 27. Qh5+ {[%emt 0:00:30]} Kg8 {[%emt 0:00:30]} 28. Qe8 {[%emt 0:00:30]} Qd6 {[%emt 0:00:30]} 29. f3 {[%emt 0:00:30]} Rd4 {[%emt 0:00:30]} 30. Ne4 {[%emt 0:00:30]} Qd7 {[%emt 0:00:30]} 31. Qxd7 {[%emt 0:00:30]} Rxd7 {[%emt 0:00:30]} 32. Kf2 {[%emt 0:00:30]} Ba3 {[%emt 0:00:30]} 33. Rb1 {[%emt 0:00:30]} c6 {[%emt 0:00:30]} 34. Ke2 {[%emt 0:00:30]} Be7 {[%emt 0:00:30]} 35. Rd1 {[%emt 0:00:30]} Rb7 {[%emt 0:00:30]} 36. Kd3 {[%emt 0:00:30]} a5 {[%emt 0:00:30]} 37. Kc2 {[%emt 0:00:30]} Kf8 {[%emt 0:00:30]} 38. h4 {[%emt 0:00:30]} a4 {[%emt 0:00:30]} 39. h5 {[%emt 0:00:30]} axb3+ {[%emt 0:00:30]} 40. axb3 {[%emt 0:00:30]} Ra7 {[%emt 0:00:30]} 41. Kb2 {[%emt 0:30:30]} Ba3+ {[%emt 0:30:30]} 42. Kb1 {[%emt 0:00:30]} Ke7 {[%emt 0:00:30]} 43. Rd2 {[%emt 0:00:30]} Rb7 {[%emt 0:00:30]} 44. Kc2 {[%emt 0:00:30]} Bb4 {[%emt 0:00:30]} 45. Rd1 {[%emt 0:00:30]} Ra7 {[%emt 0:00:30]} 46. Kb2 {[%emt 0:00:30]} Ba3+ {[%emt 0:00:30]} 47. Kc3 {[%emt 0:00:30]} Ra8 {[%emt 0:00:30]} 48. b4 {[%emt 0:00:30]} Rb8 {[%emt 0:00:30]} 49. Rb1 {[%emt 0:00:30]} 1-0

[Event "21st Maccabiah GM 2022"]
[Site "?"]
[Date "2022.07.13"]
[Round "1.4"]
[White "Tzidkiya, Yeshaayahu"]
[Black "Alekseev, Evgeny"]
[Result "1-0"]
[ECO "C90"]
[WhiteElo "2419"]
[BlackElo "2601"]
[Annotator "ChessBase"]
[PlyCount "81"]
[EventDate "2022.07.13"]
[EventType "tourn"]
[EventCountry "ISR"]
[SourceTitle "playchess.com"]
[Source "ChessBase"]
[SourceQuality "1"]
[TimeControl "40/5400+30:1800+30"]

1. e4 {[%emt 0:00:43]} e5 {[%emt 0:00:24]} 2. Nf3 {[%emt 0:00:12]} Nc6 {[%emt 0:00:17]} 3. Bb5 {[%emt 0:00:02]} a6 {[%emt 0:00:30]} 4. Ba4 {[%emt 0:00:30]} Nf6 {[%emt 0:00:30]} 5. d3 {[%emt 0:00:30]} d6 {[%emt 0:00:30]} 6. c3 {[%emt 0:00:30]} Be7 {[%emt 0:00:30]} 7. O-O {[%emt 0:00:30]} O-O {[%emt 0:00:30]} 8. Re1 {[%emt 0:00:30]} Re8 {[%emt 0:00:30]} 9. Nbd2 {[%emt 0:00:30]} Bf8 {[%emt 0:00:30]} 10. Nf1 {[%emt 0:00:30]} h6 {[%emt 0:00:30]} 11. Ng3 {[%emt 0:00:30]} b5 {[%emt 0:00:30]} 12. Bb3 {[%emt 0:00:30]} Nb8 {[%emt 0:00:30]} 13. d4 {[%emt 0:00:30]} Nbd7 {[%emt 0:00:30]} 14. a4 {[%emt 0:00:30]} Bb7 {[%emt 0:00:30]} 15. Bc2 {[%emt 0:00:30]} c5 {[%emt 0:00:30]} 16. d5 {[%emt 0:00:30]} c4 {[%emt 0:00:30]} 17. h3 {[%emt 0:00:30]} Nc5 {[%emt 0:00:30]} 18. Be3 {[%emt 0:00:30]} Qc7 {[%emt 0:00:30]} 19. Nh4 {[%emt 0:00:30]} Reb8 {[%emt 0:00:30]} 20. Qf3 {[%emt 0:00:30]} Qd8 {[%emt 0:00:30]} 21. Nh5 {[%emt 0:00:30]} Nxh5 {[%emt 0:00:30]} 22. Qxh5 {[%emt 0:00:30]} g6 {[%emt 0:00:30]} 23. Qg4 {[%emt 0:00:30]} Bc8 {[%emt 0:00:30]} 24. Qg3 {[%emt 0:00:30]} Nxa4 {[%emt 0:00:30]} 25. f4 {[%emt 0:00:30]} Bg7 {[%emt 0:00:30]} 26. Rf1 {[%emt 0:00:30]} Nxb2 {[%emt 0:00:30]} 27. Ra2 {[%emt 0:00:30]} Nd3 {[%emt 0:00:30]} 28. Bxd3 {[%emt 0:00:30]} cxd3 {[%emt 0:00:30]} 29. f5 {[%emt 0:00:30]} g5 {[%emt 0:00:30]} 30. f6 {[%emt 0:00:30]} Bxf6 {[%emt 0:00:30]} 31. Raf2 {[%emt 0:00:30]} Bg7 {[%emt 0:00:30]} 32. Rxf7 {[%emt 0:00:30]} Rb7 {[%emt 0:00:30]} 33. Rxb7 {[%emt 0:00:30]} Bxb7 {[%emt 0:00:30]} 34. Nf5 {[%emt 0:00:30]} Bc8 {[%emt 0:00:30]} 35. h4 {[%emt 0:00:30]} Bxf5 {[%emt 0:00:30]} 36. hxg5 {[%emt 0:00:30]} Bxe4 {[%emt 0:00:30]} 37. gxh6 {[%emt 0:00:30]} Qd7 {[%emt 0:00:30]} 38. Rf6 {[%emt 0:00:30]} Rc8 {[%emt 0:00:30]} 39. Rxd6 {[%emt 0:00:30]} Qb7 {[%emt 0:00:30]} 40. Qg4 {[%emt 0:00:30]} d2 {[%emt 0:00:30]} 41. Bxd2 {[%emt 0:30:30]} 1-0

[Event "21st Maccabiah GM 2022"]
[Site "?"]
[Date "2022.07.13"]
[Round "1.5"]
[White "Smirin, Ilia"]
[Black "Kobo, Ori"]
[Result "1-0"]
[ECO "B40"]
[WhiteElo "2601"]
[BlackElo "2534"]
[Annotator "ChessBase"]
[PlyCount "71"]
[EventDate "2022.07.13"]
[EventType "tourn"]
[EventCountry "ISR"]
[SourceTitle "playchess.com"]
[Source "ChessBase"]
[SourceQuality "1"]
[TimeControl "40/5400+30:1800+30"]

1. e4 {[%emt 0:00:05]} c5 {[%emt 0:00:32]} 2. Nf3 {[%emt 0:00:30]} e6 {[%emt 0:00:30]} 3. b3 {[%emt 0:00:30]} Nc6 {[%emt 0:00:30]} 4. Bb2 {[%emt 0:00:30]} a6 {[%emt 0:00:30]} 5. c4 {[%emt 0:00:30]} Nf6 {[%emt 0:00:30]} 6. e5 {[%emt 0:00:30]} Ng4 {[%emt 0:00:30]} 7. h3 {[%emt 0:00:30]} Nh6 {[%emt 0:00:30]} 8. g4 {[%emt 0:00:30]} d6 {[%emt 0:00:30]} 9. Bg2 {[%emt 0:00:30]} Nb4 {[%emt 0:00:30]} 10. d3 {[%emt 0:00:30]} dxe5 {[%emt 0:00:30]} 11. Nxe5 {[%emt 0:00:30]} Bd6 {[%emt 0:00:30]} 12. O-O {[%emt 0:00:30]} f6 {[%emt 0:00:30]} 13. a3 {[%emt 0:00:30]} Bxe5 {[%emt 0:00:30]} 14. Bxe5 {[%emt 0:00:30]} Nc6 {[%emt 0:00:30]} 15. Bf4 {[%emt 0:00:30]} Nf7 {[%emt 0:00:30]} 16. Nc3 {[%emt 0:00:30]} Nfe5 {[%emt 0:00:30]} 17. Ne4 {[%emt 0:00:30]} b6 {[%emt 0:00:30]} 18. Bxe5 {[%emt 0:00:30]} Nxe5 {[%emt 0:00:30]} 19. Nxf6+ {[%emt 0:00:30]} Qxf6 {[%emt 0:00:30]} 20. Bxa8 {[%emt 0:00:30]} O-O {[%emt 0:00:30]} 21. Be4 {[%emt 0:00:30]} Qh4 {[%emt 0:00:30]} 22. Kg2 {[%emt 0:00:30]} Rf4 {[%emt 0:00:30]} 23. f3 {[%emt 0:00:30]} h5 {[%emt 0:00:30]} 24. Qe1 {[%emt 0:00:30]} Qf6 {[%emt 0:00:30]} 25. Qe3 {[%emt 0:00:30]} Bd7 {[%emt 0:00:30]} 26. Rae1 {[%emt 0:00:30]} Nf7 {[%emt 0:00:30]} 27. b4 {[%emt 0:00:30]} cxb4 {[%emt 0:00:30]} 28. axb4 {[%emt 0:00:30]} Ng5 {[%emt 0:00:30]} 29. Qxb6 {[%emt 0:00:30]} Nxh3 {[%emt 0:00:30]} 30. Kxh3 {[%emt 0:00:30]} hxg4+ {[%emt 0:00:30]} 31. Kg3 {[%emt 0:00:30]} Qg5 {[%emt 0:00:30]} 32. Qb8+ {[%emt 0:00:30]} Rf8 {[%emt 0:00:30]} 33. Bh7+ {[%emt 0:00:30]} Kxh7 {[%emt 0:00:30]} 34. Qxf8 {[%emt 0:00:30]} gxf3+ {[%emt 0:00:30]} 35. Kxf3 {[%emt 0:00:30]} Bc6+ {[%emt 0:00:30]} 36. Re4 {[%emt 0:00:30]} 1-0

[Event "21st Maccabiah GM 2022"]
[Site "?"]
[Date "2022.07.14"]
[Round "2.1"]
[White "Dvoirys, Semen I."]
[Black "Kobo, Ori"]
[Result "0-1"]
[ECO "B69"]
[WhiteElo "2439"]
[BlackElo "2534"]
[Annotator "ChessBase"]
[PlyCount "50"]
[EventDate "2022.07.13"]
[EventType "tourn"]
[EventCountry "ISR"]
[SourceTitle "playchess.com"]
[Source "ChessBase"]
[SourceQuality "1"]
[TimeControl "40/5400+30:1800+30"]

1. e4 {[%emt 0:00:04]} c5 {[%emt 0:00:17]} 2. Nf3 {[%emt 0:00:06]} d6 {[%emt 0:00:22]} 3. Nc3 {[%emt 0:00:51]} Nc6 {[%emt 0:00:36]} 4. d4 {[%emt 0:00:09]} cxd4 {[%emt 0:00:07]} 5. Nxd4 {[%emt 0:00:03]} Nf6 {[%emt 0:00:19]} 6. Bg5 {[%emt 0:00:48]} e6 {[%emt 0:00:23]} 7. Qd2 {[%emt 0:00:07]} a6 {[%emt 0:00:18]} 8. O-O-O {[%emt 0:00:08]} Bd7 {[%emt 0:00:12]} 9. f4 {[%emt 0:00:06]} Be7 {[%emt 0:00:39]} 10. Nf3 {[%emt 0:00:22]} b5 {[%emt 0:00:09]} 11. Bxf6 {[%emt 0:00:42]} gxf6 {[%emt 0:00:16]} 12. f5 {[%emt 0:00:31]} Qb6 {[%emt 0:01:07]} 13. Kb1 {[%emt 0:08:54]} O-O-O {[%emt 0:01:51]} 14. fxe6 {[%emt 0:00:41]} fxe6 {[%emt 0:00:09]} 15. g3 {[%emt 0:00:08]} Kb8 {[%emt 0:00:40]} 16. Bh3 {[%emt 0:03:45]} Na5 {[%emt 0:02:15]} 17. Nd4 {[%emt 0:03:28]} b4 {[%emt 0:00:13]} 18. Nce2 {[%emt 0:00:41]} e5 {[%emt 0:00:20]} 19. Bxd7 {[%emt 0:00:37]} Rxd7 {[%emt 0:00:07]} 20. Nf5 {[%emt 0:01:15]} Nc4 {[%emt 0:00:22]} 21. Qd5 {[%emt 0:25:28]} Rc8 {[%emt 0:00:20]} 22. Rhf1 {[%emt 0:00:08]} a5 {[%emt 0:11:21]} 23. a4 {[%emt 0:19:58]} bxa3 {[%emt 0:03:01]} 24. b3 {[%emt 0:00:04]} a4 {[%emt 0:04:32]} 25. Rf3 {[%emt 0:00:25]} a2+ {[%emt 0:04:01]} 0-1

[Event "21st Maccabiah GM 2022"]
[Site "?"]
[Date "2022.07.14"]
[Round "2.2"]
[White "Alekseev, Evgeny"]
[Black "Smirin, Ilia"]
[Result "1/2-1/2"]
[ECO "B42"]
[WhiteElo "2601"]
[BlackElo "2601"]
[Annotator "ChessBase"]
[PlyCount "29"]
[EventDate "2022.07.13"]
[EventType "tourn"]
[EventCountry "ISR"]
[SourceTitle "playchess.com"]
[Source "ChessBase"]
[SourceQuality "1"]
[TimeControl "40/5400+30:1800+30"]

1. e4 {[%emt 0:00:04]} c5 {[%emt 0:00:55]} 2. Nf3 {[%emt 0:00:15]} e6 {[%emt 0:00:06]} 3. d4 {[%emt 0:00:30]} cxd4 {[%emt 0:00:07]} 4. Nxd4 {[%emt 0:00:04]} a6 {[%emt 0:00:08]} 5. Bd3 {[%emt 0:02:16]} Bc5 {[%emt 0:00:27]} 6. Nb3 {[%emt 0:00:06]} Ba7 {[%emt 0:00:08]} 7. O-O {[%emt 0:05:07]} Nc6 {[%emt 0:00:50]} 8. Qe2 {[%emt 0:08:40]} d6 {[%emt 0:03:32]} 9. Be3 {[%emt 0:03:16]} e5 {[%emt 0:02:15]} 10. c4 {[%emt 0:04:40]} Nf6 {[%emt 0:01:11]} 11. Bxa7 {[%emt 0:08:08]} Rxa7 {[%emt 0:01:20]} 12. Nc3 {[%emt 0:02:08]} Be6 {[%emt 0:00:33]} 13. Rfd1 {[%emt 0:03:23]} b6 {[%emt 0:04:32]} 14. Qe3 {[%emt 0:07:17]} Nd7 {[%emt 0:02:24]} 15. Bf1 {[%emt 0:10:35]} 1/2-1/2

[Event "21st Maccabiah GM 2022"]
[Site "?"]
[Date "2022.07.14"]
[Round "2.3"]
[White "Gruenfeld, Yehuda"]
[Black "Tzidkiya, Yeshaayahu"]
[Result "1/2-1/2"]
[ECO "B33"]
[WhiteElo "2426"]
[BlackElo "2419"]
[Annotator "ChessBase"]
[PlyCount "92"]
[EventDate "2022.07.13"]
[EventType "tourn"]
[EventCountry "ISR"]
[SourceTitle "playchess.com"]
[Source "ChessBase"]
[SourceQuality "1"]
[TimeControl "40/5400+30:1800+30"]

1. e4 {[%emt 0:00:03]} c5 {[%emt 0:00:11]} 2. Nf3 {[%emt 0:00:07]} Nc6 {[%emt 0:00:05]} 3. d4 {[%emt 0:00:06]} cxd4 {[%emt 0:00:04]} 4. Nxd4 {[%emt 0:00:04]} Nf6 {[%emt 0:00:25]} 5. Nc3 {[%emt 0:00:06]} e5 {[%emt 0:00:21]} 6. Ndb5 {[%emt 0:00:12]} d6 {[%emt 0:00:11]} 7. Bg5 {[%emt 0:00:16]} a6 {[%emt 0:00:05]} 8. Na3 {[%emt 0:00:05]} b5 {[%emt 0:00:15]} 9. Nd5 {[%emt 0:00:09]} Be7 {[%emt 0:00:10]} 10. Bxf6 {[%emt 0:00:07]} Bxf6 {[%emt 0:00:07]} 11. c3 {[%emt 0:00:18]} O-O {[%emt 0:00:37]} 12. Nc2 {[%emt 0:00:06]} Rb8 {[%emt 0:01:26]} 13. h4 {[%emt 0:00:27]} g6 {[%emt 0:03:12]} 14. g3 {[%emt 0:00:53]} Be6 {[%emt 0:01:28]} 15. Nce3 {[%emt 0:04:40]} Bg7 {[%emt 0:00:18]} 16. h5 {[%emt 0:03:06]} Ne7 {[%emt 0:15:15]} 17. Bg2 {[%emt 0:02:31]} a5 {[%emt 0:15:03]} 18. a3 {[%emt 0:02:28]} Nxd5 19. Nxd5 {[%emt 0:01:53]} Qg5 {[%emt 0:08:35]} 20. hxg6 {[%emt 0:09:49]} fxg6 {[%emt 0:00:52]} 21. Qd3 {[%emt 0:11:58]} h5 {[%emt 0:15:02]} 22. Bh3 {[%emt 0:14:42]} Bxd5 {[%emt 0:11:33]} 23. exd5 {[%emt 0:03:42]} Rf6 {[%emt 0:06:30]} 24. Be6+ {[%emt 0:01:25]} Kh8 {[%emt 0:00:27]} 25. O-O {[%emt 0:15:23]} Rbf8 {[%emt 0:00:56]} 26. Rae1 {[%emt 0:03:06]} Bh6 {[%emt 0:01:55]} 27. Re4 {[%emt 0:04:47]} Rf3 {[%emt 0:02:39]} 28. Qe2 {[%emt 0:22:01]} Qf6 {[%emt 0:13:23]} 29. Kg2 {[%emt 0:00:00]} Kg7 {[%emt 0:03:09]} 30. Kg1 {[%emt 0:00:00]} Bg5 {[%emt 0:00:25]} 31. Bh3 {[%emt 0:00:00]} h4 {[%emt 0:00:44]} 32. Bg4 {[%emt 0:00:00]} Rf5 {[%emt 0:00:04]} 33. f4 {[%emt 0:00:00]} hxg3 {[%emt 0:00:40]} 34. Bxf5 {[%emt 0:00:00]} gxf5 {[%emt 0:00:05]} 35. fxg5 {[%emt 0:00:00]} Qxg5 {[%emt 0:00:04]} 36. Qf3 {[%emt 0:00:00]} f4 {[%emt 0:01:31]} 37. b4 {[%emt 0:00:00]} Rh8 {[%emt 0:00:38]} 38. Re2 {[%emt 0:00:00]} Rh4 {[%emt 0:00:31]} 39. Rg2 {[%emt 0:00:00]} Qe7 {[%emt 0:00:30]} 40. Re1 {[%emt 0:01:06]} axb4 {[%emt 0:00:13]} 41. axb4 {[%emt 0:30:15]} Qa7+ {[%emt 0:30:35]} 42. Kf1 {[%emt 0:01:08]} Rh1+ {[%emt 0:00:34]} 43. Ke2 {[%emt 0:00:05]} Qa2+ {[%emt 0:00:00]} 44. Kd3 {[%emt 0:00:00]} Qc4+ {[%emt 0:00:00]} 45. Kd2 {[%emt 0:00:00]} Qa2+ {[%emt 0:00:00]} 46. Kd3 {[%emt 0:00:00]} Qc4+ {[%emt 0:02:42]} 1/2-1/2

[Event "21st Maccabiah GM 2022"]
[Site "?"]
[Date "2022.07.14"]
[Round "2.4"]
[White "Postny, Evgeny"]
[Black "Parkhov, Yair"]
[Result "1/2-1/2"]
[ECO "A13"]
[WhiteElo "2564"]
[BlackElo "2468"]
[Annotator "ChessBase"]
[PlyCount "83"]
[EventDate "2022.07.13"]
[EventType "tourn"]
[EventCountry "ISR"]
[SourceTitle "playchess.com"]
[Source "ChessBase"]
[SourceQuality "1"]
[TimeControl "40/5400+30:1800+30"]

1. c4 {[%emt 0:00:04]} e6 {[%emt 0:03:15]} 2. g3 {[%emt 0:00:22]} d5 {[%emt 0:00:08]} 3. Bg2 {[%emt 0:00:08]} d4 {[%emt 0:01:04]} 4. Nf3 {[%emt 0:01:13]} Nc6 {[%emt 0:02:17]} 5. O-O {[%emt 0:02:10]} Nf6 {[%emt 0:01:09]} 6. e3 {[%emt 0:02:43]} e5 {[%emt 0:01:28]} 7. Re1 {[%emt 0:16:47]} Be7 {[%emt 0:05:37]} 8. d3 {[%emt 0:09:47]} dxe3 9. Bxe3 {[%emt 0:02:08]} O-O {[%emt 0:10:21]} 10. Nc3 {[%emt 0:09:06]} Be6 {[%emt 0:01:36]} 11. d4 {[%emt 0:11:39]} exd4 {[%emt 0:00:17]} 12. Nxd4 {[%emt 0:00:05]} Nxd4 {[%emt 0:00:08]} 13. Qxd4 {[%emt 0:00:37]} Qxd4 {[%emt 0:00:10]} 14. Bxd4 {[%emt 0:00:05]} c6 {[%emt 0:00:08]} 15. Bh3 {[%emt 0:08:25]} Bxh3 {[%emt 0:06:04]} 16. Rxe7 {[%emt 0:00:09]} Nd7 {[%emt 0:02:04]} 17. Rae1 {[%emt 0:02:25]} c5 {[%emt 0:08:23]} 18. Be5 {[%emt 0:02:36]} Rfe8 {[%emt 0:17:03]} 19. Bd6 {[%emt 0:01:27]} Rxe7 {[%emt 0:02:05]} 20. Rxe7 {[%emt 0:01:59]} b6 {[%emt 0:07:22]} 21. f3 {[%emt 0:02:17]} Be6 {[%emt 0:02:25]} 22. b3 {[%emt 0:01:49]} a6 {[%emt 0:07:14]} 23. a4 {[%emt 0:01:05]} h6 {[%emt 0:01:01]} 24. Kf2 {[%emt 0:01:02]} Rd8 {[%emt 0:04:32]} 25. Bc7 {[%emt 0:00:36]} Rc8 {[%emt 0:00:14]} 26. Nd5 {[%emt 0:01:22]} Bxd5 {[%emt 0:03:37]} 27. Rxd7 {[%emt 0:00:05]} Bc6 {[%emt 0:01:37]} 28. Rd8+ {[%emt 0:04:15]} Rxd8 {[%emt 0:00:07]} 29. Bxd8 {[%emt 0:00:05]} b5 {[%emt 0:00:07]} 30. a5 {[%emt 0:00:23]} f5 {[%emt 0:04:17]} 31. Bb6 {[%emt 0:00:57]} Kf7 {[%emt 0:00:49]} 32. Bxc5 {[%emt 0:00:05]} g5 {[%emt 0:04:40]} 33. Ke3 {[%emt 0:00:20]} bxc4 {[%emt 0:00:44]} 34. bxc4 {[%emt 0:00:05]} Ke6 {[%emt 0:01:19]} 35. Bf8 {[%emt 0:02:37]} h5 {[%emt 0:00:06]} 36. Bh6 {[%emt 0:00:12]} g4 {[%emt 0:01:39]} 37. f4 {[%emt 0:00:06]} Bg2 {[%emt 0:00:26]} 38. Kd4 {[%emt 0:00:23]} Bf1 {[%emt 0:00:22]} 39. Bf8 {[%emt 0:00:08]} Be2 {[%emt 0:00:12]} 40. Ba3 {[%emt 0:00:09]} Bf1 {[%emt 0:00:18]} 41. Kc5 {[%emt 0:30:09]} Be2 {[%emt 0:30:26]} 42. Bb2 {[%emt 0:00:10]} 1/2-1/2